[Event "Early-Titled-Tuesday-Blitz-July-09-2024"]
[Site "Chess.com"]
[Date "2024.07.09"]
[Round "5"]
[White "KevinGeorgeMicheal"]
[Black "BashirliSaadat"]
[Result "1-0"]
[WhiteElo "2531"]
[BlackElo "2397"]
[TimeControl "180+1"]
[EndTime "8:56:28 PDT"]
[Termination "KevinGeorgeMicheal won by resignation"]

1. e4 {[%clk 0:02:59.2]} 1... c6 {[%clk 0:02:58]} 2. Nf3 {[%clk 0:02:56.6]} 2...
d5 {[%clk 0:02:57]} 3. Nc3 {[%clk 0:02:55.9]} 3... dxe4 {[%clk 0:02:56.2]} 4.
Nxe4 {[%clk 0:02:56]} 4... Nf6 {[%clk 0:02:56.3]} 5. Qe2 {[%clk 0:02:56.1]} 5...
Nxe4 {[%clk 0:02:53.5]} 6. Qxe4 {[%clk 0:02:55.1]} 6... Qd5 {[%clk 0:02:54]} 7.
Qh4 {[%clk 0:02:52.6]} 7... Bf5 {[%clk 0:02:45.9]} 8. Bc4 {[%clk 0:02:46.5]}
8... Qe4+ {[%clk 0:02:45.4]} 9. Qxe4 {[%clk 0:02:45.8]} 9... Bxe4 {[%clk
0:02:46.3]} 10. Bxf7+ {[%clk 0:02:46.3]} 10... Kxf7 {[%clk 0:02:46.4]} 11. Ng5+
{[%clk 0:02:46.3]} 11... Ke8 {[%clk 0:02:46.5]} 12. Nxe4 {[%clk 0:02:46.8]}
12... Nd7 {[%clk 0:02:47.1]} 13. d4 {[%clk 0:02:46.3]} 13... g6 {[%clk
0:02:46.5]} 14. Be3 {[%clk 0:02:44.5]} 14... Bg7 {[%clk 0:02:45.8]} 15. Ke2
{[%clk 0:02:44.6]} 15... Rd8 {[%clk 0:02:40.3]} 16. Ng5 {[%clk 0:02:35.8]} 16...
Nf8 {[%clk 0:02:29.5]} 17. c3 {[%clk 0:02:32.6]} 17... h6 {[%clk 0:02:29]} 18.
Ne4 {[%clk 0:02:30.9]} 18... Ne6 {[%clk 0:02:29.3]} 19. Rad1 {[%clk 0:02:27.3]}
19... Kf7 {[%clk 0:02:29.4]} 20. Rhf1 {[%clk 0:02:13.2]} 20... Rhf8 {[%clk
0:02:23.4]} 21. f4 {[%clk 0:02:10.1]} 21... Kg8 {[%clk 0:02:21.4]} 22. g3 {[%clk
0:02:08.2]} 22... Nc7 {[%clk 0:02:18.6]} 23. Nc5 {[%clk 0:01:59.8]} 23... b6
{[%clk 0:02:17.7]} 24. Nd3 {[%clk 0:01:59.3]} 24... Nd5 {[%clk 0:02:11.8]} 25.
Ne5 {[%clk 0:01:57.2]} 25... Rc8 {[%clk 0:02:07.6]} 26. Nxg6 {[%clk 0:01:55.1]}
26... Rfd8 {[%clk 0:02:07.3]} 27. Bf2 {[%clk 0:01:50.2]} 27... Rd7 {[%clk
0:02:04.5]} 28. Ne5 {[%clk 0:01:49]} 28... Bxe5 {[%clk 0:02:03.8]} 29. fxe5
{[%clk 0:01:49.3]} 29... Rf8 {[%clk 0:02:03.4]} 30. Be3 {[%clk 0:01:48.8]} 30...
Nxe3 {[%clk 0:02:01.7]} 31. Rxf8+ {[%clk 0:01:47.3]} 31... Kxf8 {[%clk
0:02:00.7]} 32. Kxe3 {[%clk 0:01:47.8]} 32... Kf7 {[%clk 0:02:01.2]} 33. Ke4
{[%clk 0:01:47]} 33... Ke6 {[%clk 0:01:58.4]} 34. c4 {[%clk 0:01:46]} 34... Rd8
{[%clk 0:01:58.3]} 35. d5+ {[%clk 0:01:43.1]} 35... cxd5+ {[%clk 0:01:59.2]} 36.
cxd5+ {[%clk 0:01:43.4]} 36... Kd7 {[%clk 0:01:59.4]} 37. Rf1 {[%clk 0:01:29.4]}
37... Rc8 {[%clk 0:01:59]} 38. Rf7 {[%clk 0:01:09.6]} 38... Rc4+ {[%clk
0:01:45.9]} 39. Kf5 {[%clk 0:01:07]} 39... Ke8 {[%clk 0:01:38.9]} 40. Ke6 {[%clk
0:01:04.2]} 40... Rc7 {[%clk 0:01:18.7]} 41. d6 {[%clk 0:01:03.1]} 1-0

[Event "Early-Titled-Tuesday-Blitz-July-09-2024"]
[Site "Chess.com"]
[Date "2024.07.09"]
[Round "5"]
[White "waltereador"]
[Black "WindWhistler11"]
[Result "1-0"]
[WhiteElo "2332"]
[BlackElo "2461"]
[TimeControl "180+1"]
[EndTime "8:56:28 PDT"]
[Termination "waltereador won by resignation"]

1. e4 {[%clk 0:03:00.9]} 1... e6 {[%clk 0:03:00.4]} 2. d4 {[%clk 0:02:59.9]}
2... d5 {[%clk 0:03:00]} 3. exd5 {[%clk 0:02:58.3]} 3... exd5 {[%clk 0:03:00]}
4. Nf3 {[%clk 0:02:58]} 4... Nc6 {[%clk 0:02:59.3]} 5. h3 {[%clk 0:02:58]} 5...
Bd6 {[%clk 0:02:59.4]} 6. c4 {[%clk 0:02:55.3]} 6... Nf6 {[%clk 0:02:53.6]} 7.
c5 {[%clk 0:02:55.2]} 7... Be7 {[%clk 0:02:53.5]} 8. Bd3 {[%clk 0:02:54.7]} 8...
O-O {[%clk 0:02:52.8]} 9. O-O {[%clk 0:02:54.3]} 9... Ne4 {[%clk 0:02:50.3]} 10.
Nc3 {[%clk 0:02:53.7]} 10... f5 {[%clk 0:02:49.3]} 11. Bf4 {[%clk 0:02:50.7]}
11... Be6 {[%clk 0:02:43.4]} 12. Rc1 {[%clk 0:02:49.1]} 12... Bf6 {[%clk
0:02:37.5]} 13. Be5 {[%clk 0:02:48.5]} 13... Nxe5 {[%clk 0:02:36.4]} 14. dxe5
{[%clk 0:02:43.4]} 14... Be7 {[%clk 0:02:36.3]} 15. b4 {[%clk 0:02:43.2]} 15...
a5 {[%clk 0:02:34.1]} 16. a3 {[%clk 0:02:42.6]} 16... axb4 {[%clk 0:02:33.2]}
17. axb4 {[%clk 0:02:43]} 17... Ra3 {[%clk 0:02:32.7]} 18. Nb1 {[%clk
0:02:40.1]} 18... Ra2 {[%clk 0:02:27.8]} 19. Nd4 {[%clk 0:02:40.2]} 19... Bc8
{[%clk 0:02:22.8]} 20. f3 {[%clk 0:02:35.2]} 20... Ng5 {[%clk 0:02:22.9]} 21.
Nc3 {[%clk 0:02:33.8]} 21... Ra8 {[%clk 0:02:20.5]} 22. Nxd5 {[%clk 0:02:33.1]}
22... Kh8 {[%clk 0:02:17.9]} 23. Bc4 {[%clk 0:02:28.2]} 23... Nxh3+ {[%clk
0:02:04.9]} 24. gxh3 {[%clk 0:02:24.2]} 24... Bh4 {[%clk 0:02:05.8]} 25. f4
{[%clk 0:02:18.5]} 25... Ra3 {[%clk 0:02:01.1]} 26. Rf3 {[%clk 0:02:12.9]} 26...
Rxf3 {[%clk 0:01:54.7]} 27. Nxf3 {[%clk 0:02:12.5]} 27... Bg3 {[%clk 0:01:51.2]}
28. Kg2 {[%clk 0:02:09.2]} 28... c6 {[%clk 0:01:48.3]} 29. Kxg3 {[%clk
0:02:07.2]} 29... cxd5 {[%clk 0:01:48.5]} 30. Qxd5 {[%clk 0:02:07.2]} 30... Qe8
{[%clk 0:01:48.7]} 31. Rd1 {[%clk 0:02:00.4]} 31... Qg6+ {[%clk 0:01:48.5]} 32.
Kf2 {[%clk 0:02:00.3]} 32... Qh5 {[%clk 0:01:47.8]} 33. Qd6 {[%clk 0:01:45.5]}
33... Re8 {[%clk 0:01:44.4]} 34. h4 {[%clk 0:01:30.9]} 34... h6 {[%clk
0:01:42.4]} 35. Qc7 {[%clk 0:01:24.8]} 35... Be6 {[%clk 0:01:28.7]} 36. Bxe6
{[%clk 0:01:15.1]} 36... Rxe6 {[%clk 0:01:29.6]} 37. Qc8+ {[%clk 0:01:15]} 37...
Re8 {[%clk 0:01:28.5]} 38. Rd8 {[%clk 0:01:14.8]} 38... Rxd8 {[%clk 0:01:28.8]}
39. Qxd8+ {[%clk 0:01:15.1]} 39... Kh7 {[%clk 0:01:29.7]} 40. Qd3 {[%clk
0:01:09.5]} 40... Qg4 {[%clk 0:01:29.4]} 41. e6 {[%clk 0:01:06.4]} 41... Qg6
{[%clk 0:01:21]} 42. Qd7 {[%clk 0:01:03.7]} 42... Qf6 {[%clk 0:01:17.4]} 43. e7
{[%clk 0:01:02.1]} 43... Qb2+ {[%clk 0:01:17.6]} 44. Kg3 {[%clk 0:01:02.2]}
44... Qxb4 {[%clk 0:01:16.5]} 45. Qxf5+ {[%clk 0:00:59.7]} 45... g6 {[%clk
0:01:16.6]} 46. Qf7+ {[%clk 0:00:59.9]} 1-0

[Event "Early-Titled-Tuesday-Blitz-July-09-2024"]
[Site "Chess.com"]
[Date "2024.07.09"]
[Round "5"]
[White "MrEscacs"]
[Black "Arimin1329"]
[Result "0-1"]
[WhiteElo "2190"]
[BlackElo "2405"]
[TimeControl "180+1"]
[EndTime "8:56:28 PDT"]
[Termination "Arimin1329 won by resignation"]

1. e4 {[%clk 0:02:59.9]} 1... c6 {[%clk 0:02:59.8]} 2. d4 {[%clk 0:02:59.6]}
2... d5 {[%clk 0:03:00.7]} 3. Nc3 {[%clk 0:02:59.3]} 3... dxe4 {[%clk
0:03:00.8]} 4. Nxe4 {[%clk 0:03:00.2]} 4... Bf5 {[%clk 0:03:00.9]} 5. Ng3 {[%clk
0:03:00.3]} 5... Bg6 {[%clk 0:03:01.8]} 6. h4 {[%clk 0:03:00.5]} 6... h6 {[%clk
0:03:02.3]} 7. Nf3 {[%clk 0:03:01]} 7... e6 {[%clk 0:03:01.9]} 8. Ne5 {[%clk
0:03:01]} 8... Bh7 {[%clk 0:03:01.3]} 9. Bc4 {[%clk 0:02:59.9]} 9... Nd7 {[%clk
0:02:57.8]} 10. Qe2 {[%clk 0:02:53.8]} 10... Nxe5 {[%clk 0:02:55.4]} 11. dxe5
{[%clk 0:02:52.8]} 11... Ne7 {[%clk 0:02:47.8]} 12. Bb3 {[%clk 0:02:47.9]} 12...
Nd5 {[%clk 0:02:31.3]} 13. c4 {[%clk 0:02:43.2]} 13... Bb4+ {[%clk 0:02:31.1]}
14. Bd2 {[%clk 0:02:36.4]} 14... Bxd2+ {[%clk 0:02:27.7]} 15. Qxd2 {[%clk
0:02:36.6]} 15... Ne7 {[%clk 0:02:27.3]} 16. O-O-O {[%clk 0:02:31]} 16... Qxd2+
{[%clk 0:02:07.3]} 17. Rxd2 {[%clk 0:02:31.9]} 17... Rd8 {[%clk 0:01:50]} 18.
Rhd1 {[%clk 0:02:30.1]} 18... Rxd2 {[%clk 0:01:47.7]} 19. Rxd2 {[%clk
0:02:30.5]} 19... Ng6 {[%clk 0:01:31]} 20. Ne4 {[%clk 0:02:16.9]} 20... Nxe5
{[%clk 0:01:25.6]} 21. Nd6+ {[%clk 0:02:17]} 21... Ke7 {[%clk 0:01:25.6]} 22.
Nxb7 {[%clk 0:02:16.3]} 22... Nd3+ {[%clk 0:00:47.8]} 23. Rxd3 {[%clk
0:02:15.8]} 23... Bxd3 {[%clk 0:00:46]} 24. Kd2 {[%clk 0:02:07.9]} 24... Bg6
{[%clk 0:00:41.6]} 25. Ke3 {[%clk 0:02:07.9]} 25... Rb8 {[%clk 0:00:33.2]} 26.
Nc5 {[%clk 0:02:07.4]} 26... Kd6 {[%clk 0:00:30.5]} 27. Ne4+ {[%clk 0:01:47.3]}
27... Bxe4 {[%clk 0:00:30]} 28. Kxe4 {[%clk 0:01:48.2]} 28... Kc5 {[%clk
0:00:29.3]} 29. f4 {[%clk 0:01:47.1]} 29... a5 {[%clk 0:00:28.9]} 30. g4 {[%clk
0:01:18.1]} 30... Rb4 {[%clk 0:00:28.7]} 0-1

[Event "Early-Titled-Tuesday-Blitz-July-09-2024"]
[Site "Chess.com"]
[Date "2024.07.09"]
[Round "5"]
[White "whitemirrorninja"]
[Black "Aygehovit1992"]
[Result "0-1"]
[WhiteElo "2527"]
[BlackElo "2765"]
[TimeControl "180+1"]
[EndTime "8:56:32 PDT"]
[Termination "Aygehovit1992 won by checkmate"]

1. b3 {[%clk 0:03:00.9]} 1... Nf6 {[%clk 0:02:56.6]} 2. Bb2 {[%clk 0:03:00.4]}
2... g6 {[%clk 0:02:56.9]} 3. g3 {[%clk 0:03:00.4]} 3... Bg7 {[%clk 0:02:56.9]}
4. Bg2 {[%clk 0:03:00.8]} 4... d6 {[%clk 0:02:55.8]} 5. c4 {[%clk 0:02:59.4]}
5... e5 {[%clk 0:02:55.3]} 6. Nc3 {[%clk 0:02:59.2]} 6... c5 {[%clk 0:02:55.3]}
7. e3 {[%clk 0:02:58.9]} 7... Nc6 {[%clk 0:02:55.8]} 8. Nge2 {[%clk 0:02:58.9]}
8... O-O {[%clk 0:02:56.3]} 9. O-O {[%clk 0:02:59.1]} 9... Bf5 {[%clk 0:02:55]}
10. d4 {[%clk 0:02:57.6]} 10... exd4 {[%clk 0:02:54.7]} 11. exd4 {[%clk
0:02:58.5]} 11... Re8 {[%clk 0:02:52.5]} 12. dxc5 {[%clk 0:02:48.6]} 12... dxc5
{[%clk 0:02:52.4]} 13. Bxc6 {[%clk 0:02:45.4]} 13... bxc6 {[%clk 0:02:51.1]} 14.
Qxd8 {[%clk 0:02:46.1]} 14... Raxd8 {[%clk 0:02:52]} 15. Rad1 {[%clk 0:02:46.5]}
15... Ne4 {[%clk 0:01:56.8]} 16. Nxe4 {[%clk 0:02:33.8]} 16... Bxb2 {[%clk
0:01:46.5]} 17. Rxd8 {[%clk 0:01:11.2]} 17... Rxd8 {[%clk 0:01:47.4]} 18. Nxc5
{[%clk 0:01:11.8]} 18... Rd2 {[%clk 0:01:44.5]} 19. Re1 {[%clk 0:01:06.9]} 19...
Bg4 {[%clk 0:01:29.2]} 20. Nf4 {[%clk 0:01:00.8]} 20... Bd4 {[%clk 0:01:26.1]}
21. Ne4 {[%clk 0:00:44.9]} 21... Rxa2 {[%clk 0:01:25.5]} 22. Kg2 {[%clk
0:00:44.3]} 22... f5 {[%clk 0:01:20.4]} 23. Nd6 {[%clk 0:00:37]} 23... Rxf2+
{[%clk 0:01:16.2]} 24. Kh1 {[%clk 0:00:20.6]} 24... Bf3+ {[%clk 0:01:15.7]} 25.
Kg1 {[%clk 0:00:21.3]} 25... Rg2+ {[%clk 0:01:15.2]} 26. Kf1 {[%clk 0:00:08.3]}
26... Rg1# {[%clk 0:01:15.5]} 0-1

[Event "Early-Titled-Tuesday-Blitz-July-09-2024"]
[Site "Chess.com"]
[Date "2024.07.09"]
[Round "5"]
[White "pouya21"]
[Black "arctic_t00"]
[Result "0-1"]
[WhiteElo "2860"]
[BlackElo "2665"]
[TimeControl "180+1"]
[EndTime "8:56:41 PDT"]
[Termination "arctic_t00 won by resignation"]

1. Nf3 {[%clk 0:03:00.9]} 1... Nf6 {[%clk 0:02:54.7]} 2. c4 {[%clk 0:03:00.5]}
2... g6 {[%clk 0:02:54.5]} 3. g3 {[%clk 0:02:56.7]} 3... Bg7 {[%clk 0:02:54.9]}
4. Bg2 {[%clk 0:02:57.6]} 4... O-O {[%clk 0:02:51]} 5. O-O {[%clk 0:02:57.8]}
5... d6 {[%clk 0:02:51.2]} 6. d4 {[%clk 0:02:56.3]} 6... Nc6 {[%clk 0:02:47.4]}
7. Nc3 {[%clk 0:02:51.7]} 7... Bf5 {[%clk 0:02:47.3]} 8. d5 {[%clk 0:02:47]}
8... Na5 {[%clk 0:02:46.6]} 9. Qa4 {[%clk 0:02:46.4]} 9... c5 {[%clk 0:02:44.4]}
10. dxc6 {[%clk 0:02:46.7]} 10... Nxc6 {[%clk 0:02:41.5]} 11. Nh4 {[%clk
0:02:09.8]} 11... Be6 {[%clk 0:02:30.5]} 12. Rd1 {[%clk 0:02:02.2]} 12... Nd7
{[%clk 0:02:15.5]} 13. Nd5 {[%clk 0:01:54.5]} 13... Nb6 {[%clk 0:02:05.6]} 14.
Qc2 {[%clk 0:01:45.9]} 14... Rc8 {[%clk 0:02:03.6]} 15. Bg5 {[%clk 0:01:14.5]}
15... h6 {[%clk 0:01:36.1]} 16. Be3 {[%clk 0:01:11.4]} 16... g5 {[%clk
0:01:08.6]} 17. Nf5 {[%clk 0:00:48.6]} 17... Bxf5 {[%clk 0:01:08.1]} 18. Qxf5
{[%clk 0:00:47.6]} 18... e6 {[%clk 0:01:08.6]} 19. Qb1 {[%clk 0:00:33.8]} 19...
exd5 {[%clk 0:01:08.7]} 20. cxd5 {[%clk 0:00:34.7]} 20... Ne5 {[%clk 0:01:06.7]}
21. Bd4 {[%clk 0:00:34.9]} 21... Re8 {[%clk 0:01:00]} 22. Qf5 {[%clk 0:00:34]}
22... Qd7 {[%clk 0:00:57.6]} 23. Be4 {[%clk 0:00:33.9]} 23... Qxf5 {[%clk
0:00:57.5]} 24. Bxf5 {[%clk 0:00:34.8]} 24... Rc4 {[%clk 0:00:47.7]} 25. e3
{[%clk 0:00:25.4]} 25... Nf3+ {[%clk 0:00:45.5]} 26. Kg2 {[%clk 0:00:25.7]}
26... Nxd4 {[%clk 0:00:45.5]} 0-1

[Event "Early-Titled-Tuesday-Blitz-July-09-2024"]
[Site "Chess.com"]
[Date "2024.07.09"]
[Round "5"]
[White "slidingknight2775"]
[Black "AGW2016"]
[Result "1/2-1/2"]
[WhiteElo "2761"]
[BlackElo "2583"]
[TimeControl "180+1"]
[EndTime "8:56:44 PDT"]
[Termination "Game drawn by repetition"]

1. c4 {[%clk 0:03:00.9]} 1... g6 {[%clk 0:02:58.9]} 2. Nf3 {[%clk 0:02:56.4]}
2... Bg7 {[%clk 0:02:59.3]} 3. d4 {[%clk 0:02:52.7]} 3... Nf6 {[%clk 0:02:59.6]}
4. b3 {[%clk 0:02:52.5]} 4... d6 {[%clk 0:02:58.5]} 5. Bb2 {[%clk 0:02:52.7]}
5... O-O {[%clk 0:02:59.2]} 6. e3 {[%clk 0:02:53.1]} 6... b6 {[%clk 0:02:59.3]}
7. Be2 {[%clk 0:02:53]} 7... Bb7 {[%clk 0:03:00.1]} 8. O-O {[%clk 0:02:53.7]}
8... Nbd7 {[%clk 0:03:00.8]} 9. Nc3 {[%clk 0:02:51.9]} 9... Ne4 {[%clk
0:03:01.2]} 10. Nxe4 {[%clk 0:02:49.7]} 10... Bxe4 {[%clk 0:03:02.1]} 11. Nd2
{[%clk 0:02:50.5]} 11... Bb7 {[%clk 0:03:02.7]} 12. Bf3 {[%clk 0:02:51.1]} 12...
Bxf3 {[%clk 0:03:03.5]} 13. Qxf3 {[%clk 0:02:52]} 13... e5 {[%clk 0:03:04.3]}
14. dxe5 {[%clk 0:02:43.7]} 14... Nxe5 {[%clk 0:03:00.5]} 15. Qe2 {[%clk
0:02:43.4]} 15... a5 {[%clk 0:03:00.2]} 16. a3 {[%clk 0:02:40.1]} 16... Re8
{[%clk 0:02:59.9]} 17. Rad1 {[%clk 0:02:37.4]} 17... Qd7 {[%clk 0:02:59.7]} 18.
Bd4 {[%clk 0:02:33.3]} 18... Qf5 {[%clk 0:02:50.1]} 19. Nb1 {[%clk 0:02:01.8]}
19... Nd7 {[%clk 0:02:27.8]} 20. Bxg7 {[%clk 0:01:53.4]} 20... Kxg7 {[%clk
0:02:28]} 21. Nc3 {[%clk 0:01:50.5]} 21... Nc5 {[%clk 0:02:28.7]} 22. Nd5 {[%clk
0:01:49.8]} 22... Rac8 {[%clk 0:02:24.5]} 23. Qb2+ {[%clk 0:01:47.2]} 23... Qe5
{[%clk 0:02:23.7]} 24. Qc2 {[%clk 0:01:45.3]} 24... Ne4 {[%clk 0:02:14]} 25. f3
{[%clk 0:01:36.8]} 25... Nf6 {[%clk 0:02:13.6]} 26. e4 {[%clk 0:01:36.7]} 26...
Nxd5 {[%clk 0:02:10.3]} 27. cxd5 {[%clk 0:01:36.4]} 27... f5 {[%clk 0:02:00.1]}
28. Rfe1 {[%clk 0:01:32.7]} 28... Re7 {[%clk 0:01:55.9]} 29. exf5 {[%clk
0:00:54.9]} 29... Qxe1+ {[%clk 0:01:54.3]} 30. Rxe1 {[%clk 0:00:55.8]} 30...
Rxe1+ {[%clk 0:01:54.8]} 31. Kf2 {[%clk 0:00:56.5]} 31... Re5 {[%clk 0:01:55.2]}
32. Qc3 {[%clk 0:00:56.2]} 32... Kf7 {[%clk 0:01:55.1]} 33. fxg6+ {[%clk
0:00:56.2]} 33... hxg6 {[%clk 0:01:55.5]} 34. Qc6 {[%clk 0:00:51]} 34... Re7
{[%clk 0:01:54.5]} 35. b4 {[%clk 0:00:49.8]} 35... axb4 {[%clk 0:01:54.1]} 36.
axb4 {[%clk 0:00:50.7]} 36... Rce8 {[%clk 0:01:54.6]} 37. h4 {[%clk 0:00:49.6]}
37... Kf6 {[%clk 0:01:53.2]} 38. Kg3 {[%clk 0:00:49]} 38... Kg7 {[%clk 0:01:50]}
39. Qc3+ {[%clk 0:00:48.2]} 39... Kf7 {[%clk 0:01:50.1]} 40. Qc1 {[%clk
0:00:46.6]} 40... Kg7 {[%clk 0:01:50.2]} 41. Qf4 {[%clk 0:00:44.4]} 41... Rf7
{[%clk 0:01:49.7]} 42. Qc4 {[%clk 0:00:44.2]} 42... Ree7 {[%clk 0:01:46.2]} 43.
Qd4+ {[%clk 0:00:42]} 43... Kh7 {[%clk 0:01:44.9]} 44. Qd3 {[%clk 0:00:40.5]}
44... Kg7 {[%clk 0:01:44.7]} 45. Qd4+ {[%clk 0:00:23.7]} 45... Kh7 {[%clk
0:01:44.8]} 46. Qc3 {[%clk 0:00:23.4]} 46... Rf5 {[%clk 0:01:43.4]} 47. Qc4
{[%clk 0:00:23.1]} 47... Kg7 {[%clk 0:01:43]} 48. Qd4+ {[%clk 0:00:21]} 48...
Kh7 {[%clk 0:01:42.4]} 49. Qc4 {[%clk 0:00:21.2]} 49... Kg7 {[%clk 0:01:42.8]}
50. Qd4+ {[%clk 0:00:20]} 50... Kh7 {[%clk 0:01:43.4]} 51. Qc4 {[%clk
0:00:20.4]} 1/2-1/2

[Event "Early-Titled-Tuesday-Blitz-July-09-2024"]
[Site "Chess.com"]
[Date "2024.07.09"]
[Round "5"]
[White "maroro07"]
[Black "JAN2404"]
[Result "1-0"]
[WhiteElo "2372"]
[BlackElo "2069"]
[TimeControl "180+1"]
[EndTime "8:56:46 PDT"]
[Termination "maroro07 won by resignation"]

1. d4 {[%clk 0:02:55.9]} 1... Nf6 {[%clk 0:02:46.4]} 2. Bf4 {[%clk 0:02:49.2]}
2... c5 {[%clk 0:02:43.1]} 3. e3 {[%clk 0:02:44.8]} 3... Qb6 {[%clk 0:02:42.4]}
4. dxc5 {[%clk 0:02:32]} 4... Qxc5 {[%clk 0:02:37.2]} 5. Nc3 {[%clk 0:02:22.8]}
5... d6 {[%clk 0:02:30.4]} 6. Nf3 {[%clk 0:02:19.5]} 6... e5 {[%clk 0:02:17.8]}
7. Bg3 {[%clk 0:02:16.9]} 7... Be6 {[%clk 0:02:05.8]} 8. Be2 {[%clk 0:02:08.1]}
8... Be7 {[%clk 0:02:00.2]} 9. O-O {[%clk 0:02:07.9]} 9... O-O {[%clk
0:01:54.9]} 10. Bh4 {[%clk 0:02:03.9]} 10... Nc6 {[%clk 0:01:34]} 11. Bxf6
{[%clk 0:02:02.9]} 11... Bxf6 {[%clk 0:01:32.3]} 12. Ne4 {[%clk 0:02:03.1]}
12... Qb4 {[%clk 0:01:27.3]} 13. Nxf6+ {[%clk 0:01:43.5]} 13... gxf6 {[%clk
0:01:26]} 14. b3 {[%clk 0:01:30.4]} 14... Kh8 {[%clk 0:01:19.3]} 15. a3 {[%clk
0:01:26.7]} 15... Qc5 {[%clk 0:01:02.8]} 16. e4 {[%clk 0:01:05]} 16... Rac8
{[%clk 0:00:54.5]} 17. c4 {[%clk 0:00:53.9]} 17... f5 {[%clk 0:00:42.8]} 18.
exf5 {[%clk 0:00:49]} 18... Bxf5 {[%clk 0:00:41.9]} 19. b4 {[%clk 0:00:47.8]}
19... Qb6 {[%clk 0:00:35.6]} 20. Qxd6 {[%clk 0:00:45.1]} 20... Rfe8 {[%clk
0:00:14]} 21. Qf6+ {[%clk 0:00:44.2]} 1-0

[Event "Early-Titled-Tuesday-Blitz-July-09-2024"]
[Site "Chess.com"]
[Date "2024.07.09"]
[Round "5"]
[White "boguszp"]
[Black "Austen48"]
[Result "0-1"]
[WhiteElo "1946"]
[BlackElo "2278"]
[TimeControl "180+1"]
[EndTime "8:56:46 PDT"]
[Termination "Austen48 won by resignation"]

1. d4 {[%clk 0:03:00.9]} 1... Nf6 {[%clk 0:02:58.8]} 2. Nf3 {[%clk 0:02:59.2]}
2... e6 {[%clk 0:02:54.5]} 3. Bf4 {[%clk 0:02:59.5]} 3... c5 {[%clk 0:02:53.2]}
4. e3 {[%clk 0:02:59.9]} 4... b6 {[%clk 0:02:51.1]} 5. Be2 {[%clk 0:02:59.2]}
5... Bb7 {[%clk 0:02:50.5]} 6. O-O {[%clk 0:02:59.7]} 6... Be7 {[%clk 0:02:49]}
7. h3 {[%clk 0:02:59.6]} 7... O-O {[%clk 0:02:48.9]} 8. c4 {[%clk 0:02:59]} 8...
cxd4 {[%clk 0:02:47.5]} 9. exd4 {[%clk 0:02:57.2]} 9... d5 {[%clk 0:02:47.7]}
10. Nc3 {[%clk 0:02:55.4]} 10... dxc4 {[%clk 0:02:35.9]} 11. Bxc4 {[%clk
0:02:53.6]} 11... Nd5 {[%clk 0:02:35.6]} 12. Nxd5 {[%clk 0:02:51.7]} 12... Bxd5
{[%clk 0:02:34]} 13. Bxd5 {[%clk 0:02:49.6]} 13... Qxd5 {[%clk 0:02:33.5]} 14.
Qa4 {[%clk 0:02:38.2]} 14... Nd7 {[%clk 0:02:25]} 15. Rac1 {[%clk 0:02:34.3]}
15... Rfc8 {[%clk 0:02:14.2]} 16. Ne5 {[%clk 0:02:29]} 16... b5 {[%clk
0:02:06.1]} 17. Qa6 {[%clk 0:02:16.3]} 17... Nb6 {[%clk 0:01:56.1]} 18. Nc6
{[%clk 0:02:05.9]} 18... Rxc6 {[%clk 0:01:46.5]} 19. Rxc6 {[%clk 0:01:56.6]}
19... Qxc6 {[%clk 0:01:45.6]} 20. Rc1 {[%clk 0:01:57.3]} 20... Qd5 {[%clk
0:01:35.5]} 21. Bc7 {[%clk 0:01:53.7]} 21... Nc4 {[%clk 0:01:31.2]} 22. b3
{[%clk 0:01:49.3]} 22... Nb2 {[%clk 0:01:22]} 23. Be5 {[%clk 0:01:40.9]} 23...
Nd3 {[%clk 0:01:19.1]} 24. Rc8+ {[%clk 0:01:38.8]} 24... Rxc8 {[%clk 0:01:17.7]}
25. Qxc8+ {[%clk 0:01:39.4]} 25... Qd8 {[%clk 0:01:14.6]} 26. Qc3 {[%clk
0:01:35.2]} 26... Nxe5 {[%clk 0:01:14.3]} 27. dxe5 {[%clk 0:01:34.4]} 27... h6
{[%clk 0:01:14.3]} 28. Kh2 {[%clk 0:01:32]} 28... Qd5 {[%clk 0:01:10.9]} 29. f4
{[%clk 0:01:27.4]} 29... g6 {[%clk 0:01:08.7]} 30. a4 {[%clk 0:01:17.9]} 30...
bxa4 {[%clk 0:01:07.1]} 31. bxa4 {[%clk 0:01:17.6]} 31... Bc5 {[%clk 0:01:06.9]}
32. a5 {[%clk 0:01:11.3]} 32... a6 {[%clk 0:01:07]} 33. Qb2 {[%clk 0:01:06.9]}
33... Qd4 {[%clk 0:00:57]} 34. Qb8+ {[%clk 0:01:03.6]} 34... Kg7 {[%clk
0:00:56.1]} 35. Qc7 {[%clk 0:00:51.8]} 35... Qxf4+ {[%clk 0:00:54.7]} 36. Kh1
{[%clk 0:00:50]} 36... Qc1+ {[%clk 0:00:48.4]} 37. Kh2 {[%clk 0:00:48]} 37...
Bg1+ {[%clk 0:00:48.3]} 0-1

[Event "Early-Titled-Tuesday-Blitz-July-09-2024"]
[Site "Chess.com"]
[Date "2024.07.09"]
[Round "5"]
[White "vikber19611"]
[Black "xh4823"]
[Result "0-1"]
[WhiteElo "1662"]
[BlackElo "2360"]
[TimeControl "180+1"]
[EndTime "8:56:50 PDT"]
[Termination "xh4823 won by resignation"]

1. e4 {[%clk 0:03:00.9]} 1... g6 {[%clk 0:02:57.5]} 2. d4 {[%clk 0:02:59.6]}
2... Bg7 {[%clk 0:02:58.4]} 3. Nc3 {[%clk 0:02:56.9]} 3... a6 {[%clk 0:02:55.3]}
4. f4 {[%clk 0:02:54.6]} 4... b5 {[%clk 0:02:52.6]} 5. a3 {[%clk 0:02:52.6]}
5... Bb7 {[%clk 0:02:51.7]} 6. Nf3 {[%clk 0:02:49.6]} 6... d6 {[%clk 0:02:47.6]}
7. Bd3 {[%clk 0:02:47.9]} 7... Nd7 {[%clk 0:02:47.4]} 8. O-O {[%clk 0:02:45.8]}
8... c5 {[%clk 0:02:45.9]} 9. Be3 {[%clk 0:02:36.5]} 9... Ngf6 {[%clk
0:02:39.5]} 10. e5 {[%clk 0:02:23.8]} 10... Ng4 {[%clk 0:02:37.8]} 11. Qd2
{[%clk 0:02:08.3]} 11... Nxe3 {[%clk 0:02:34.3]} 12. Qxe3 {[%clk 0:02:07.1]}
12... cxd4 {[%clk 0:02:34.8]} 13. Nxd4 {[%clk 0:01:43.8]} 13... dxe5 {[%clk
0:02:31.8]} 14. fxe5 {[%clk 0:01:41.8]} 14... Nxe5 {[%clk 0:02:31.9]} 15. Be4
{[%clk 0:01:26.5]} 15... Bxe4 {[%clk 0:02:20.2]} 16. Qxe4 {[%clk 0:01:17]} 16...
Qxd4+ {[%clk 0:02:14.5]} 17. Qxd4 {[%clk 0:01:12.2]} 17... Nf3+ {[%clk
0:02:14.4]} 18. Rxf3 {[%clk 0:01:10.9]} 18... Bxd4+ {[%clk 0:02:15.3]} 19. Kf1
{[%clk 0:01:06.6]} 19... O-O {[%clk 0:02:15.4]} 20. Rd1 {[%clk 0:01:03.8]} 20...
e5 {[%clk 0:02:11.3]} 21. b3 {[%clk 0:00:18.7]} 21... Rac8 {[%clk 0:02:05.2]}
22. Rdd3 {[%clk 0:00:17.4]} 22... Rc6 {[%clk 0:01:04.2]} 23. Ke2 {[%clk
0:00:14.4]} 23... Rfc8 {[%clk 0:01:01.8]} 24. Kd2 {[%clk 0:00:14.2]} 24... f5
{[%clk 0:00:59.5]} 0-1